[Event "African Individual Chess-ch Open 2024"]
[Site "Accra"]
[Date "2024.03.17"]
[Round "6.10"]
[White "Pereira, Sergio Murilo de Ara"]
[Black "Cogan, Nicolas"]
[Result "0-1"]
[ECO "B23"]
[WhiteElo "2115"]
[BlackElo "2070"]
[Annotator "RC"]
[PlyCount "72"]
[EventDate "2024.03.13"]
[EventCountry "GHA"]
[SourceTitle "playchess.com"]
[Source "ChessBase"]
[SourceQuality "1"]
[TimeControl "5400+30"]

1. e4 {[%emt 0:00:26]} c5 {[%emt 0:09:28]} 2. Nc3 {[%emt 0:00:29]} Nc6 {[%emt 0:00:43]} 3. Bb5 {[%emt 0:00:10]} Nd4 {[%emt 0:00:05]} 4. Bc4 {[%emt 0:00:08]} e6 {[%emt 0:00:04]} 5. Nge2 {[%emt 0:00:10]} Ne7 {[%emt 0:02:38]} 6. O-O {[%emt 0:00:24]} g6 {[%emt 0:09:37]} 7. Nxd4 {[%emt 0:28:57]} cxd4 {[%emt 0:00:02]} 8. Nb5 {[%emt 0:02:32]} Nc6 {[%emt 0:03:15]} 9. c3 {[%emt 0:06:57]} Bg7 {[%emt 0:10:24]} 10. b3 {[%emt 0:08:45]} a6 {[%emt 0:04:10]} 11. Nd6+ {[%emt 0:00:59]} Kf8 {[%emt 0:00:21]} 12. Ba3 {[%emt 0:09:59]} Kg8 {[%emt 0:02:00]} 13. f4 {[%emt 0:01:12]} Qa5 {[%emt 0:11:33]} 14. b4 {[%emt 0:05:28]} Qc7 {[%emt 0:19:31]} 15. e5 {[%emt 0:03:54]} b5 {[%emt 0:01:31]} 16. Bb3 {[%emt 0:00:55]} Bb7 {[%emt 0:01:05]} 17. Qg4 {[%emt 0:05:11]} Rf8 {[%emt 0:09:00]} 18. c4 {[%emt 0:03:03]} h5 {[%emt 0:01:57]} 19. Qe2 {[%emt 0:01:52]} h4 {[%emt 0:03:23]} 20. cxb5 {[%emt 0:01:40]} axb5 {[%emt 0:00:32]} 21. Qxb5 {[%emt 0:00:22]} Ba8 {[%emt 0:00:56]} 22. Qc5 {[%emt 0:00:38]} Qb8 {[%emt 0:01:48]} 23. h3 {[%emt 0:02:40]} f6 {[%emt 0:06:11]} 24. b5 {[%emt 0:01:29]} Na5 {[%emt 0:01:41]} 25. Rab1 {[%emt 0:05:21]} fxe5 {[%emt 0:00:32]} 26. fxe5 {[%emt 0:00:58]} Rxf1+ {[%emt 0:00:10]} 27. Rxf1 {[%emt 0:00:10]} Rh5 {[%emt 0:00:51]} 28. Re1 {[%emt 0:07:34]} Rg5 {[%emt 0:00:29]} 29. Ne4 {[%emt 0:00:53]} Rxe5 {[%emt 0:00:30]} 30. Qc2 {[%emt 0:00:44]} Nxb3 {[%emt 0:00:24]} 31. axb3 {[%emt 0:00:16]} Rxb5 {[%emt 0:00:35]} 32. Rf1 {[%emt 0:01:15]} Rf5 {[%emt 0:00:31]} 33. Rxf5 {[%emt 0:00:38]} gxf5 {[%emt 0:00:01]} 34. Nc5 {[%emt 0:00:50]} Qg3 {[%emt 0:00:21]} 35. d3 {[%emt 0:00:17]} Be5 {[%emt 0:00:01]} 36. Ne4 {[%emt 0:00:25]} Qe1# {[%emt 0:01:33]} 0-1

[Event "African Individual Chess-ch Open 2024"]
[Site "Accra"]
[Date "2024.03.17"]
[Round "6.11"]
[White "Oluka Robert Mcligeyo"]
[Black "Amoako Philip Selikem Yao"]
[Result "0-1"]
[ECO "D75"]
[WhiteElo "2041"]
[BlackElo "1848"]
[Annotator "RC"]
[PlyCount "88"]
[EventDate "2024.03.13"]
[EventCountry "GHA"]
[SourceTitle "playchess.com"]
[Source "ChessBase"]
[SourceQuality "1"]
[TimeControl "5400+30"]

1. c4 {[%emt 1:31:00]} Nf6 {[%emt 0:04:52]} 2. Nf3 {[%emt 0:00:00]} g6 {[%emt 0:00:27]} 3. g3 {[%emt 0:00:00]} Bg7 {[%emt 0:00:13]} 4. Bg2 {[%emt 0:00:00]} O-O {[%emt 0:00:12]} 5. O-O {[%emt 0:00:00]} c5 {[%emt 0:01:01]} 6. Nc3 {[%emt 0:00:00]} Nc6 {[%emt 0:01:32]} 7. e3 {[%emt 0:00:00]} d5 {[%emt 0:01:40]} 8. cxd5 {[%emt 0:00:00]} Nxd5 {[%emt 0:00:15]} 9. d4 {[%emt 0:00:00]} Nxc3 {[%emt 0:04:53]} 10. bxc3 {[%emt 0:00:00]} Bg4 {[%emt 0:01:51]} 11. Ba3 {[%emt 0:00:00]} cxd4 {[%emt 0:01:19]} 12. cxd4 {[%emt 0:00:00]} Qd7 {[%emt 0:02:24]} 13. Rc1 {[%emt 0:00:00]} Rfd8 {[%emt 0:05:31]} 14. Qb3 {[%emt 0:00:00]} Rac8 {[%emt 0:05:21]} 15. Ng5 {[%emt 0:00:00]} e6 {[%emt 0:03:33]} 16. h3 {[%emt 0:00:00]} Be2 {[%emt 0:01:03]} 17. Rfe1 {[%emt 0:00:00]} Ba6 {[%emt 0:00:15]} 18. Ne4 {[%emt 0:00:00]} Na5 {[%emt 0:02:50]} 19. Qb4 {[%emt 0:00:00]} b6 {[%emt 0:04:24]} 20. Nc5 {[%emt 0:00:00]} Qb5 {[%emt 0:10:32]} 21. Nxa6 {[%emt 0:00:00]} Qxa6 {[%emt 0:00:20]} 22. Qa4 {[%emt 0:00:00]} b5 {[%emt 0:03:54]} 23. Bf1 {[%emt 0:00:00]} Rb8 {[%emt 0:03:39]} 24. Rc5 {[%emt 0:00:00]} bxa4 {[%emt 0:08:32]} 25. Bxa6 {[%emt 0:00:00]} Bf8 {[%emt 0:00:43]} 26. Rxa5 {[%emt 0:00:00]} Bd6 {[%emt 0:32:14]} 27. Bb4 Bxb4 {[%emt 0:00:00]} 28. Rxa4 {[%emt 0:00:00]} Bd6 {[%emt 0:00:00]} 29. Bc4 {[%emt 0:00:00]} Rdc8 {[%emt 0:00:00]} 30. Bb3 {[%emt 0:00:00]} Rc7 {[%emt 0:00:00]} 31. Ra6 {[%emt 0:00:00]} Rb6 {[%emt 0:00:00]} 32. Rxb6 {[%emt 0:00:00]} axb6 {[%emt 0:00:00]} 33. Rb1 {[%emt 0:00:00]} b5 {[%emt 0:00:00]} 34. Kg2 {[%emt 0:00:00]} Kf8 {[%emt 0:00:00]} 35. Bd1 {[%emt 0:00:00]} b4 {[%emt 0:00:00]} 36. h4 {[%emt 0:00:00]} Ke8 {[%emt 0:00:00]} 37. h5 {[%emt 0:00:00]} g5 {[%emt 0:00:00]} 38. h6 {[%emt 0:00:00]} Bf8 {[%emt 0:00:00]} 39. Kf3 {[%emt 0:00:00]} Ra7 {[%emt 0:00:00]} 40. Bb3 {[%emt 0:00:00]} Ra5 {[%emt 0:00:00]} 41. Rc1 {[%emt 0:00:00]} Rf5+ {[%emt 0:00:00]} 42. Ke2 {[%emt 0:00:00]} Kd8 {[%emt 0:00:00]} 43. Rc6 {[%emt 0:00:00]} Ra5 {[%emt 0:00:08]} 44. Rb6 {[%emt 0:00:00]} Kc7 {[%emt 0:00:46]} 0-1

[Event "African Individual Chess-ch Open 2024"]
[Site "Accra"]
[Date "2024.03.17"]
[Round "6.13"]
[White "Egbe, Kossi Thierry"]
[Black "David Leroy Debblay"]
[Result "1-0"]
[ECO "C42"]
[WhiteElo "1871"]
[BlackElo "1913"]
[Annotator "RC"]
[PlyCount "95"]
[EventDate "2024.03.13"]
[EventCountry "GHA"]
[SourceTitle "playchess.com"]
[Source "ChessBase"]
[SourceQuality "1"]
[TimeControl "5400+30"]

1. e4 {[%emt 1:31:00]} e5 2. Nf3 Nf6 3. Nc3 {[%emt 0:00:00]} Bb4 {[%emt 0:06:26]} 4. Bc4 {[%emt 0:00:00]} d6 {[%emt 0:00:00]} 5. d3 {[%emt 0:00:00]} O-O {[%emt 0:00:00]} 6. h3 {[%emt 0:00:00]} h6 {[%emt 0:00:00]} 7. a3 {[%emt 0:00:00]} Ba5 {[%emt 0:00:00]} 8. b4 {[%emt 0:00:00]} Bb6 {[%emt 0:00:00]} 9. Be3 {[%emt 0:00:00]} c6 {[%emt 0:00:00]} 10. Bb3 {[%emt 0:00:00]} Be6 {[%emt 0:00:00]} 11. Bxe6 {[%emt 0:00:00]} fxe6 {[%emt 0:00:00]} 12. O-O {[%emt 0:00:00]} Nbd7 {[%emt 0:00:05]} 13. Bxb6 {[%emt 0:00:00]} Qxb6 {[%emt 0:00:20]} 14. d4 {[%emt 0:00:00]} exd4 {[%emt 0:00:42]} 15. Qxd4 {[%emt 0:00:00]} Qxd4 {[%emt 0:01:56]} 16. Nxd4 {[%emt 0:00:00]} Rae8 {[%emt 0:00:02]} 17. Nb3 {[%emt 0:00:00]} Ne5 {[%emt 0:10:30]} 18. Na5 {[%emt 0:00:00]} b6 {[%emt 0:06:31]} 19. f4 {[%emt 0:00:00]} Ng6 {[%emt 0:02:10]} 20. Nxc6 {[%emt 0:00:00]} Rc8 {[%emt 0:00:13]} 21. b5 {[%emt 0:00:00]} Rxc6 {[%emt 0:02:56]} 22. bxc6 {[%emt 0:00:00]} Rc8 {[%emt 0:00:03]} 23. e5 {[%emt 0:00:00]} Rxc6 {[%emt 0:02:12]} 24. exf6 {[%emt 0:00:00]} Rxc3 {[%emt 0:00:10]} 25. fxg7 {[%emt 0:00:00]} Rxc2 {[%emt 0:00:27]} 26. f5 {[%emt 0:00:00]} exf5 {[%emt 0:01:06]} 27. Rxf5 {[%emt 0:00:00]} Kxg7 {[%emt 0:00:52]} 28. Rd1 {[%emt 0:00:00]} Ne7 {[%emt 0:10:49]} 29. Rf2 {[%emt 0:00:00]} Rc6 {[%emt 0:00:23]} 30. Rdf1 {[%emt 0:00:00]} Rc7 {[%emt 0:03:29]} 31. Rf7+ {[%emt 0:00:00]} Kg8 {[%emt 0:00:31]} 32. R7f6 {[%emt 0:00:00]} Rd7 {[%emt 0:00:20]} 33. Rxh6 {[%emt 0:00:00]} d5 {[%emt 0:01:00]} 34. Rh4 {[%emt 0:00:00]} Ng6 {[%emt 0:10:46]} 35. Rd4 {[%emt 0:00:30]} Kg7 {[%emt 0:00:23]} 36. Rf3 {[%emt 0:01:28]} Rd6 {[%emt 0:00:51]} 37. Kf2 {[%emt 0:03:07]} b5 {[%emt 0:00:58]} 38. Rf5 {[%emt 0:01:21]} Ne7 {[%emt 0:02:13]} 39. Rg4+ {[%emt 0:01:38]} Kh6 {[%emt 0:00:51]} 40. Rf8 {[%emt 0:01:00]} Ng6 {[%emt 0:00:27]} 41. Rg8 {[%emt 0:06:12]} d4 {[%emt 0:04:14]} 42. Ke2 {[%emt 0:01:36]} Re6+ {[%emt 0:04:04]} 43. Kd2 {[%emt 0:00:37]} a5 {[%emt 0:03:01]} 44. R8xg6+ {[%emt 0:01:37]} Rxg6 {[%emt 0:00:15]} 45. Rxg6+ {[%emt 0:00:08]} Kxg6 {[%emt 0:00:02]} 46. Kd3 {[%emt 0:00:29]} b4 {[%emt 0:04:03]} 47. axb4 {[%emt 0:00:34]} a4 {[%emt 0:01:01]} 48. Kxd4 {[%emt 0:03:13]} 1-0

[Event "African Individual Chess-ch Open 2024"]
[Site "Accra"]
[Date "2024.03.18"]
[Round "7.1"]
[White "Zhemba, Jemusse"]
[Black "Amin, Bassem"]
[Result "0-1"]
[ECO "C77"]
[WhiteElo "2226"]
[BlackElo "2670"]
[Annotator "TA"]
[PlyCount "71"]
[EventDate "2024.03.13"]
[EventCountry "GHA"]
[SourceTitle "playchess.com"]
[Source "ChessBase"]
[SourceQuality "1"]
[TimeControl "5400+30"]

{[%evp 14,71,-17,-16,-13,-18,-7,-20,0,-48,-56,-70,-52,-57,-55,-71,-35,-53,-44,-57,-53,-73,-63,-86,-80,-116,-114,-103,-116,-115,-76,-84,-88,-98,-56,-202,-186,-282,-281,-324,-317,-332,-325,-307,-95,-106,-94,-398,-401,-498,-508,-510,-510,-559,-525,-551,-546,-1022,-955,-29987]} 1. e4 {[%emt 0:00:03]} e5 {[%emt 0:01:10]} 2. Nf3 {[%emt 0:00:18]} Nc6 {[%emt 0:00:07]} 3. Bb5 {[%emt 0:00:22][%cal Bf1b5,Bb5a4,Ba4b3][%mdl 32]} a6 {[%emt 0:00:38]} 4. Ba4 {[%emt 0:00:18]} Nf6 {[%emt 0:00:05]} 5. Qe2 {[%emt 0:00:12]} b5 {[%emt 0:08:37]} 6. Bb3 {[%emt 0:00:20]} Bc5 {[%emt 0:00:06]} 7. c3 {[%emt 0:00:49]} O-O {[%emt 0:00:08]} 8. d3 {[%emt 0:00:46]} Re8 {[%emt 0:03:37]} 9. O-O {[%emt 0:03:48]} h6 {[%emt 0:01:11]} 10. Be3 {[%emt 0:00:25]} Bf8 {[%emt 0:00:42] The position is equal.} 11. Rd1 {[%emt 0:04:51]} (11. Nbd2 $11 {deserves consideration.}) 11... d5 $15 {[%emt 0:00:52]} 12. h3 {[%emt 0:05:06]} Na5 {[%emt 0:01:32]} 13. Bc2 {[%emt 0:02:25]} c5 {[%emt 0:00:13]} 14. Bc1 {[%emt 0:03:59]} Ra7 {[%emt 0:10:30]} 15. Nbd2 {[%emt 0:06:35]} Rd7 {[%emt 0:00:28]} 16. Re1 {[%emt 0:00:07]} Bb7 {[%emt 0:09:33]} 17. Nh2 {[%emt 0:02:46]} d4 {[%emt 0:06:45][%cal Oc5c4]} 18. cxd4 {[%emt 0:03:09]} exd4 {[%emt 0:00:54]} 19. a4 {[%emt 0:05:08] [#]} c4 $1 {[%emt 0:05:35][%mdl 512]} 20. axb5 {[%emt 0:03:06]} axb5 {[%emt 0:00:11]} 21. Ng4 {[%emt 0:00:12] Threatens to win with Nxf6+.} Bb4 {[%emt 0:17:19]} 22. Nxf6+ {[%emt 0:04:12]} Qxf6 {[%emt 0:00:02]} 23. Rd1 {[%emt 0:00:20] White is weak on the dark squares} Rc7 {[%emt 0:04:05] Black is much more active.} 24. f3 {[%emt 0:01:38] [#]} (24. Nf3 $15) 24... Rec8 $1 $19 {[%emt 0:01:30] Hoping for ...c3.} 25. e5 {[%emt 0:11:23]} (25. Rb1 {is the only way for White.}) 25... Qb6 {[%emt 0:05:11] And now ...c3 would win.} 26. Ne4 {[%emt 0:07:23][%cal Oe4d6]} cxd3 {[%emt 0:03:05]} 27. Bxd3 {[%emt 0:00:29]} Nb3 $1 {[%emt 0:00:07][%csl LRa1,LRc1]} 28. Bf4 {[%emt 0:00:08][%cal Oe4d6] [#]} Nxa1 $2 {[%emt 0:00:06]} (28... Rc2 $1 $19 {[%cal Rc2e2] and Black stays clearly on top.} 29. Qf1 (29. Bxc2 $2 {is the wrong capture.} d3+ 30. Qf2 Qxf2+ 31. Kxf2 dxc2 $19) 29... Nxa1 (29... Rxb2 30. Rdb1 $17) 30. Rxa1 Bxe4 (30... Rxb2 $2 31. Nd6 $19) 31. Bxe4 d3+ (31... Rxb2 $2 32. Kh2 $19) 32. Kh2 g5 (32... Rxb2 $2 33. Bxd3 Bc3 34. Bg3 $19)) 29. Rxa1 $17 {[%emt 0:00:04]} Rc2 {[%emt 0:08:17]} 30. Qd1 {[%emt 0:00:02][%mdl 8192]} (30. Bxc2 $17 d3+ 31. Qe3 Qxe3+ 32. Bxe3 dxc2 (32... Rxc2 33. Nf2 $15) 33. Nd6 Bxd6 34. exd6) 30... Bxe4 $19 {[%emt 0:00:24]} (30... Rxb2 31. Nd6 Rc3 32. Nxb5 $19) 31. Bxe4 {[%emt 0:00:56]} d3+ {[%emt 0:00:26] Black is clearly winning.} ({Less strong is} 31... Rxb2 32. Qd3 $19) 32. Kh2 {[%emt 0:02:11]} Qf2 {[%emt 0:00:21]} 33. Qf1 {[%emt 0:00:25]} Qxf1 {[%emt 0:01:10]} (33... Rxb2 $2 34. Qxf2 Rxf2 35. Bxd3 $19) 34. Rxf1 {[%emt 0:00:06]} g5 {[%emt 0:00:12]} 35. Bg3 {[%emt 0:04:42] [#]} d2 {[%emt 0:00:22] Strongly threatening ...Rc1.} 36. Bh7+ {[%emt 0:00:43] Weighted Error Value: White=0.58/Black=0.13 (very precise) .  Loses game:     	White=1     	---        Missed win:     	---       	Black=1      Mistake:       	White=3     	---        Inaccurate:     	White=3     	Black=3      OK:         	White=8     	Black=14     Best:        	---       	Black=3} (36. Bxc2 Rxc2) 0-1

[Event "African Individual Chess-ch Open 2024"]
[Site "Accra"]
[Date "2024.03.18"]
[Round "7.2"]
[White "Mwali, Chitumbo"]
[Black "Bellahcene, Bilel"]
[Result "0-1"]
[ECO "A10"]
[WhiteElo "2340"]
[BlackElo "2522"]
[Annotator "TA"]
[PlyCount "90"]
[EventDate "2024.03.13"]
[EventCountry "GHA"]
[SourceTitle "playchess.com"]
[Source "ChessBase"]
[SourceQuality "1"]
[TimeControl "5400+30"]

{[%evp 17,90,31,75,69,77,49,82,43,54,49,49,47,43,33,53,45,35,0,0,0,17,32,50,53,68,0,114,97,104,79,98,0,74,40,72,77,43,45,39,35,39,36,44,27,83,103,91,92,115,20,120,62,102,54,187,0,0,0,0,0,0,-110,-147,-120,0,-766,-511,-1012,-1004,-1008,-912,-1017,-1004,-777,-454]} 1. c4 {[%emt 0:00:05]} b6 {[%emt 0:06:30]} 2. Nc3 {[%emt 0:02:12]} Bb7 {[%emt 0:00:37]} 3. e4 {[%emt 0:00:58]} e6 {[%emt 0:00:15]} 4. g3 {[%emt 0:00:26]} Bb4 {[%emt 0:02:43]} 5. Nge2 {[%emt 0:00:15]} f5 {[%emt 0:03:19]} 6. d3 {[%emt 0:05:13] A10: English Opening: Unusual Replies for Black.} Nf6 {[%emt 0:00:22]} 7. Bg2 {[%emt 0:00:04]} fxe4 {[%emt 0:00:58]} 8. O-O {[%emt 0:00:09]} O-O {[%emt 0:03:13]} 9. dxe4 {[%emt 0:00:44]} Ng4 {[%emt 0:02:01] was the old line (9...e5).} 10. Na4 {[%emt 0:07:05]} a5 $146 {[%emt 0:07:28]} ({Predecessor:} 10... Qe7) 11. a3 {[%emt 0:04:00]} (11. Nd4 {seems wilder.} e5 12. a3 Be7 13. Nf5) 11... Be7 {[%emt 0:00:36]} 12. f4 {[%emt 0:00:20]} Na6 {[%emt 0:00:55]} 13. h3 {[%emt 0:00:20]} Nh6 {[%emt 0:07:40]} 14. Be3 {[%emt 0:01:20]} Nc5 {[%emt 0:03:33]} 15. Nec3 {[%emt 0:07:07]} Nf7 {[%emt 0:02:30]} 16. Rf2 {[%emt 0:05:24]} Bc6 {[%emt 0:04:13]} 17. Rd2 {[%emt 0:09:33]} e5 {[%emt 0:01:09]} 18. Qc2 {[%emt 0:21:40]} Ne6 {[%emt 0:16:31]} 19. Rf1 {[%emt 0:18:40]} Bc5 {[%emt 0:03:01]} 20. Nxc5 {[%emt 0:05:47]} bxc5 {[%emt 0:00:01]} 21. Qd1 {[%emt 0:00:41]} ({White should play} 21. Rdf2 $14) 21... d6 {[%emt 0:00:14]} (21... Nd6 $11 22. Qe2 (22. fxe5 Nxc4 23. Rxf8+ Qxf8 $15) 22... Rb8) 22. f5 $16 {[%emt 0:00:38]} Nd4 {[%emt 0:00:14]} 23. Qh5 {[%emt 0:00:29]} (23. Rdf2 {with more complications.} Qb8 24. f6 g6 25. Nd5) 23... Be8 {[%emt 0:06:02]} 24. Qd1 {[%emt 0:00:25]} (24. Rdf2 $16) 24... c6 {[%emt 0:01:42]} (24... Bc6 $1 $11) 25. g4 {[%emt 0:01:03]} Rb8 {[%emt 0:01:49]} 26. Qe1 {[%emt 0:01:35]} Nh8 {[%emt 0:02:44]} 27. Qg3 {[%emt 0:01:47]} Bf7 {[%emt 0:00:24]} 28. h4 {[%emt 0:01:29]} Bxc4 {[%emt 0:00:33]} 29. Rff2 {[%emt 0:00:08]} Rb7 {[%emt 0:05:40]} 30. h5 {[%emt 0:01:20]} h6 {[%emt 0:01:30]} (30... Qb8 $11) 31. g5 $16 {[%emt 0:00:14]} hxg5 {[%emt 0:00:01]} 32. Bxg5 {[%emt 0:00:08]} Qe8 {[%emt 0:00:02]} 33. Bf3 {[%emt 0:02:07]} (33. Be3 $16) 33... Kh7 {[%emt 0:04:22]} (33... Nf7 $11 {keeps the balance.}) 34. Rh2 {[%emt 0:01:00]} (34. Be3 $16) 34... d5 $14 {[%emt 0:05:16]} 35. Bd1 {[%emt 0:01:37]} (35. exd5 $2 cxd5 36. Bxd5 Bxd5 (36... Nxf5 $2 37. Be4 $18) 37. Nxd5 Qc6 $17 (37... Rxf5 38. Rdf2 $19) (37... Nxf5 38. Qg4 $14)) (35. Bh4 $1 $16) 35... Rbf7 {[%emt 0:03:12] [#]} (35... dxe4 $1 $14 36. Nxe4 Rxf5 (36... Bd5 37. h6 $16)) 36. Be3 $2 {[%emt 0:00:31]} ({White has to play} 36. Rdf2 $1 $18) 36... dxe4 $1 $11 {[%emt 0:00:48]} 37. Nxe4 {[%emt 0:01:26]} Rxf5 {[%emt 0:00:02]} 38. Rhg2 {[%emt 0:00:46]} (38. Nxc5 $2 Rf1+ 39. Kg2 Bd5+ 40. Kh3 Rxd1 $19) 38... Qe7 {[%emt 0:05:21]} 39. Ng5+ {[%emt 0:00:20] [#]} (39. Bg5 $1 $11 Qc7 40. h6 (40. Nxc5 $2 {perishes.} Rf1+ 41. Kh2 R8f3 $19)) 39... Kg8 $1 $17 {[%emt 0:00:08]} 40. h6 {[%emt 0:00:19]} R8f6 {[%emt 0:01:34]} (40... Ng6 $17 {...Bd5 is the strong threat.} 41. Nh3 R8f6) 41. Bxd4 $4 {[%emt 0:00:55][%mdl 8192]} (41. h7+ $11 Kf8 42. Ne4) 41... Rf1+ $19 {[%emt 0:00:00]} 42. Kh2 {[%emt 0:00:00]} Rxh6+ {[%emt 0:00:00]} ({Inferior is} 42... exd4 43. Qb8+) 43. Nh3 {[%emt 0:00:00]} cxd4 {[%emt 0:00:00]} 44. Bb3 {[%emt 0:00:00]} Bxb3 {[%emt 0:00:00]} 45. Qxb3+ {[%emt 0:00:00]} Qe6 {[%emt 0:00:00]} 0-1

[Event "African Individual Chess-ch Open 2024"]
[Site "Accra"]
[Date "2024.03.18"]
[Round "7.3"]
[White "Aikhoje, Odion"]
[Black "Silva, David"]
[Result "0-1"]
[ECO "A48"]
[WhiteElo "2215"]
[BlackElo "2358"]
[Annotator "RC"]
[PlyCount "126"]
[EventDate "2024.03.13"]
[EventCountry "GHA"]
[SourceTitle "playchess.com"]
[Source "ChessBase"]
[SourceQuality "1"]
[TimeControl "5400+30"]

1. Nf3 {[%emt 0:00:27]} Nf6 {[%emt 0:00:07]} 2. d4 {[%emt 0:00:08]} g6 {[%emt 0:00:08]} 3. Bf4 {[%emt 0:01:20]} Bg7 {[%emt 0:00:15]} 4. e3 {[%emt 0:01:05]} c5 {[%emt 0:00:46]} 5. c3 {[%emt 0:00:14]} Qb6 {[%emt 0:00:06]} 6. Qb3 {[%emt 0:00:10]} d6 {[%emt 0:00:15]} 7. h3 {[%emt 0:03:53]} O-O {[%emt 0:02:04]} 8. Nbd2 {[%emt 0:00:26]} cxd4 {[%emt 0:01:12]} 9. Qxb6 {[%emt 0:02:45]} axb6 {[%emt 0:00:14]} 10. exd4 {[%emt 0:00:25]} Bd7 {[%emt 0:03:17]} 11. Be2 {[%emt 0:02:56]} b5 {[%emt 0:00:22]} 12. O-O {[%emt 0:02:48]} Nd5 {[%emt 0:01:43]} 13. Bh2 {[%emt 0:00:17]} b4 {[%emt 0:03:03]} 14. c4 {[%emt 0:02:33]} Nb6 {[%emt 0:00:43]} 15. a3 {[%emt 0:01:07]} Nc6 {[%emt 0:01:54]} 16. d5 {[%emt 0:03:52]} Nd4 {[%emt 0:00:36]} 17. Nxd4 {[%emt 0:06:51]} Bxd4 {[%emt 0:00:58]} 18. axb4 {[%emt 0:00:23]} Bxb2 {[%emt 0:01:52]} 19. Rab1 {[%emt 0:00:31]} Bg7 {[%emt 0:01:47]} 20. Bf4 {[%emt 0:05:54]} Rfc8 {[%emt 0:03:24]} 21. Be3 {[%emt 0:00:41]} Na4 {[%emt 0:00:25]} 22. Bf3 {[%emt 0:00:40]} Bf5 {[%emt 0:03:38]} 23. Rb3 {[%emt 0:01:08]} Nc3 {[%emt 0:11:49]} 24. Bg4 {[%emt 0:07:05]} Ra2 {[%emt 0:02:18]} 25. Re1 {[%emt 0:03:49]} Bxg4 {[%emt 0:00:58]} 26. hxg4 {[%emt 0:00:11]} b5 {[%emt 0:00:23]} 27. cxb5 {[%emt 0:00:04]} Nxd5 {[%emt 0:01:32]} 28. Nf3 {[%emt 0:00:11]} Rb8 {[%emt 0:02:04]} 29. Rc1 {[%emt 0:03:25]} Ra1 {[%emt 0:03:19]} 30. Rxa1 {[%emt 0:00:10]} Bxa1 {[%emt 0:00:20]} 31. Bd2 {[%emt 0:00:09]} f5 {[%emt 0:06:11]} 32. gxf5 {[%emt 0:07:00]} gxf5 {[%emt 0:00:29]} 33. Nh4 {[%emt 0:02:32]} f4 {[%emt 0:01:25]} 34. Kf1 {[%emt 0:08:21]} Rxb5 {[%emt 0:00:49]} 35. Ke2 {[%emt 0:00:30]} Bf6 {[%emt 0:05:09]} 36. Nf3 {[%emt 0:00:30]} e5 {[%emt 0:00:25]} 37. Ne1 {[%emt 0:00:27]} Kf7 {[%emt 0:05:04]} 38. Nc2 {[%emt 0:00:22]} Ke6 {[%emt 0:00:20]} 39. Rh3 {[%emt 0:03:01]} Rb7 {[%emt 0:00:33]} 40. Kd3 {[%emt 0:00:49]} Rg7 {[%emt 0:03:39]} 41. Ne1 {[%emt 0:00:21]} Bd8 {[%emt 0:01:48]} 42. Rh6+ {[%emt 0:06:36]} Nf6 {[%emt 0:00:40]} 43. Ke2 {[%emt 0:00:42]} Bb6 {[%emt 0:01:37]} 44. b5 {[%emt 0:04:10]} Ra7 {[%emt 0:01:31]} 45. g4 {[%emt 0:00:29]} fxg3 {[%emt 0:00:34]} 46. fxg3 {[%emt 0:00:29]} Ra2 {[%emt 0:00:32]} 47. Kd1 {[%emt 0:02:28]} Kf7 {[%emt 0:04:00]} 48. Nf3 {[%emt 0:00:45]} Kg7 {[%emt 0:05:03]} 49. Rh2 {[%emt 0:03:15]} Ra1+ {[%emt 0:00:17]} 50. Kc2 {[%emt 0:00:12]} e4 {[%emt 0:00:18]} 51. Nh4 {[%emt 0:00:33]} Rf1 {[%emt 0:01:48]} 52. Bc3 {[%emt 0:01:54]} Kf7 {[%emt 0:01:16]} 53. Rd2 {[%emt 0:01:55]} Ke6 {[%emt 0:01:15]} 54. Bxf6 {[%emt 0:02:03]} Rxf6 {[%emt 0:00:36]} 55. Ng2 {[%emt 0:00:08]} Rf2 {[%emt 0:00:28]} 56. Kd1 {[%emt 0:07:04]} Rxd2+ {[%emt 0:00:36]} 57. Kxd2 {[%emt 0:00:10]} d5 {[%emt 0:00:10]} 58. Ke2 {[%emt 0:01:06]} d4 {[%emt 0:00:12]} 59. Nf4+ {[%emt 0:01:12]} Kd6 {[%emt 0:00:47]} 60. Kd2 {[%emt 0:02:02]} Kc5 {[%emt 0:01:30]} 61. Ne6+ {[%emt 0:00:21]} Kc4 {[%emt 0:00:18]} 62. Ng5 {[%emt 0:00:17]} e3+ {[%emt 0:00:11]} 63. Ke1 {[%emt 0:00:00]} d3 {[%emt 0:00:00]} 0-1

[Event "African Individual Chess-ch Open 2024"]
[Site "Accra"]
[Date "2024.03.18"]
[Round "7.4"]
[White "Abdulraheem Abdulrahman Akinto"]
[Black "Ortega Amarelle, Mariano"]
[Result "0-1"]
[ECO "B89"]
[WhiteElo "2229"]
[BlackElo "2482"]
[Annotator "RC"]
[PlyCount "66"]
[EventDate "2024.03.13"]
[EventCountry "GHA"]
[SourceTitle "playchess.com"]
[Source "ChessBase"]
[SourceQuality "1"]
[TimeControl "5400+30"]

1. e4 {[%emt 0:00:16]} c5 {[%emt 0:00:27]} 2. Nf3 {[%emt 0:00:31]} d6 {[%emt 0:00:28]} 3. d4 {[%emt 0:00:41]} cxd4 {[%emt 0:00:11]} 4. Nxd4 {[%emt 0:00:09]} Nf6 {[%emt 0:00:06]} 5. Nc3 {[%emt 0:00:08]} Nc6 {[%emt 0:00:05]} 6. Bc4 {[%emt 0:00:49]} e6 {[%emt 0:04:04]} 7. Be3 {[%emt 0:01:04]} Be7 {[%emt 0:03:14]} 8. Qe2 {[%emt 0:00:59]} a6 {[%emt 0:02:27]} 9. Bb3 {[%emt 0:02:06]} Nxd4 {[%emt 0:04:47]} 10. Bxd4 {[%emt 0:00:22]} b5 {[%emt 0:00:04]} 11. a3 {[%emt 0:04:59]} O-O {[%emt 0:09:00]} 12. O-O-O {[%emt 0:03:51]} Qa5 {[%emt 0:09:23]} 13. g4 {[%emt 0:07:00]} Nd7 {[%emt 0:13:45]} 14. f4 {[%emt 0:06:05]} Nc5 {[%emt 0:02:07]} 15. Kb1 {[%emt 0:02:33]} Nxb3 {[%emt 0:10:12]} 16. cxb3 {[%emt 0:00:03]} b4 {[%emt 0:00:08]} 17. axb4 {[%emt 0:05:53]} Qxb4 {[%emt 0:00:08]} 18. g5 {[%emt 0:01:46]} Bb7 {[%emt 0:10:07]} 19. Rhg1 {[%emt 0:17:01]} Rac8 {[%emt 0:09:11]} 20. Rg3 {[%emt 0:13:44]} Rfe8 {[%emt 0:13:12]} 21. h4 {[%emt 0:06:32]} Bf8 {[%emt 0:00:31]} 22. Na2 {[%emt 0:05:34]} Qb5 {[%emt 0:00:35]} 23. Qg2 {[%emt 0:01:58]} e5 {[%emt 0:01:06]} 24. fxe5 {[%emt 0:01:01]} dxe5 {[%emt 0:00:03]} 25. Bg1 {[%emt 0:05:57]} Red8 {[%emt 0:00:07]} 26. Rxd8 {[%emt 0:03:30]} Rxd8 {[%emt 0:00:06]} 27. Nc1 {[%emt 0:01:40]} Qb4 {[%emt 0:01:24]} 28. Rg4 {[%emt 0:03:38]} Rd1 {[%emt 0:03:00]} 29. Kc2 {[%emt 0:00:58]} Re1 {[%emt 0:01:09]} 30. Nd3 {[%emt 0:00:23]} Bxe4 {[%emt 0:00:10]} 31. Qd2 {[%emt 0:03:56]} Bxd3+ {[%emt 0:01:53]} 32. Kxd3 {[%emt 0:00:01]} Qxb3+ {[%emt 0:00:27]} 33. Qc3 {[%emt 0:00:26]} Qd5+ {[%emt 0:03:23]} 0-1